bitfinex-derivatives/quotes_ETHF0:USTF0_20250620
["timestamp","ask_amount","ask_price","bid_price","bid_amount"]
[1750379423799,2.05698,2523.9,2523.8,4.78899008]
[1750379424301,4.56230066,2523.9,2523.8,4.78899008]
[1750379426106,2.05698,2523.9,2523.8,4.78899008]
[1750379427004,0.79228,2523.9,2523.8,4.78899008]
[1750379428898,2.05198,2523.9,2523.8,4.78899008]
[1750379429804,0.79228,2523.9,2523.8,4.78899008]
[1750379430405,2.10318,2523.9,2523.8,4.78899008]
[1750379432507,2.10318,2523.9,2523.8,1.58119008]
[1750379432704,0.79231,2523.8,2523.7,1.65052789]
[1750379432902,4.60403066,2523.8,2523.7,1.65052789]
[1750379433913,4.60403066,2523.8,2523.7,1.58119008]
[1750379435711,0.79234,2523.7,2523.6,1.58119008]
[1750379435908,26.0437,2523.7,2523.5,4.78899008]
[1750379436215,3.98449066,2523.6,2523.5,4.78899008]
[1750379436514,5.29999066,2523.6,2523.5,4.78899008]
[1750379437216,2.79467,2523.6,2523.5,4.78899008]
[1750379437510,6.189,2523.8,2523.7,0.79234]
[1750379437705,6.98132,2523.8,2523.7,4.87913425]
[1750379437906,0.79232,2523.8,2523.7,5.66969366]
[1750379438207,0.79232,2523.8,2523.7,6.30459366]
[1750379438714,0.79232,2523.8,2523.7,5.51225366]
[1750379439317,0.79232,2523.8,2523.7,3.006933]
[1750379441018,0.79232,2523.8,2523.7,3.799273]
[1750379442411,0.79232,2523.8,2523.7,3.93256066]
[1750379442616,0.79232,2523.8,2523.7,5.28766066]
[1750379442818,1.3276,2524.2,2523.8,0.79226]
[1750379442819,0.7923,2523.9,2523.8,0.79226]
[1750379443017,0.7923,2523.9,2523.8,5.42449781]
[1750379443206,0.79227,2524.0,2523.9,0.79223]
[1750379443409,0.79227,2524.0,2523.9,2.14733]
[1750379443616,0.79224,2524.2,2524.1,0.79218]
[1750379444023,0.79224,2524.2,2524.1,6.82248222]
[1750379444221,0.79216,2524.3,2524.2,0.79214]
[1750379444422,0.79216,2524.3,2524.2,4.52043398]
[1750379444726,3.29748066,2524.3,2524.2,2.37319398]
[1750379444926,3.29748066,2524.3,2523.9,3.14981127]
[1750379444927,0.79218,2524.2,2524.1,1.58172373]
[1750379445231,1.8991,2524.2,2524.0,1.58172373]
[1750379445424,3.95673066,2524.1,2524.0,1.58172373]
[1750379445625,5.22143066,2524.1,2524.0,1.58172373]
[1750379445820,6.188,2524.3,2523.8,10.91302974]
[1750379446022,6.98015,2524.3,2524.2,2.37258971]
[1750379446430,6.98015,2524.3,2524.2,3.79876971]
[1750379446738,0.79215,2524.3,2524.2,3.79876971]
[1750379446937,6.98015,2524.3,2524.2,3.00658971]
[1750379447132,0.79215,2524.3,2524.2,3.79876971]
[1750379450132,0.79215,2524.3,2524.2,3.86810752]
[1750379451640,0.79215,2524.3,2524.2,7.07590752]
[1750379452331,3.29747066,2524.3,2524.2,0.06933781]
[1750379452529,10.26227066,2524.3,2524.2,0.06933781]
[1750379453234,0.79225,2524.0,2523.9,4.78755211]
[1750379453431,33.55557066,2524.0,2523.9,4.78755211]
[1750379454234,34.85587066,2524.0,2523.9,4.78755211]
[1750379455534,41.04428066,2524.0,2523.6,1.57975211]
[1750379455741,2.50532066,2523.8,2523.6,1.57975211]
[1750379456033,0.79237,2523.6,2523.5,4.78755211]
[1750379456333,6.97837,2523.6,2523.5,4.78755211]
[1750379456522,8.27867,2523.6,2523.5,4.78755211]
[1750379458933,8.27867,2523.6,2523.5,3.2078]
[1750379459635,10.78399066,2523.6,2523.5,3.2078]
[1750379460533,0.79243,2523.4,2523.3,1.57975211]
[1750379460737,27.37175066,2523.4,2523.3,1.57975211]
[1750379460937,0.79247,2523.3,2523.2,1.57975211]
[1750379461229,2.12947,2523.3,2523.2,1.57975211]
[1750379462032,0.7925,2523.2,2523.1,3.2078]
[1750379462242,0.79256,2523.0,2522.9,1.57975211]
[1750379463237,0.79259,2522.9,2522.8,2.20575211]
[1750379464237,0.79259,2522.9,2522.8,2.99837211]
[1750379464440,0.79259,2522.9,2522.8,2.20575211]
[1750379466333,0.79259,2522.9,2522.8,4.71107277]
[1750379467842,0.79259,2522.9,2522.8,5.50369277]
[1750379468446,0.79259,2522.9,2522.8,3.92394066]
[1750379468640,0.79259,2522.9,2522.8,3.13132066]
[1750379469247,0.79259,2522.9,2522.8,0.626]
[1750379470335,0.79259,2522.9,2522.8,1.80760877]
[1750379470948,0.79259,2522.9,2522.8,2.60022877]
[1750379471249,0.79259,2522.9,2522.8,1.80760877]
[1750379471743,0.79259,2522.9,2522.8,2.60022877]
[1750379471949,0.79259,2523.0,2522.9,0.79256]
[1750379472143,0.79259,2523.0,2522.9,4.47948943]
[1750379472544,0.79259,2523.0,2522.9,4.54882724]
[1750379472950,8.838,2523.3,2522.9,4.54882724]
[1750379472951,0.79255,2523.1,2523.0,0.79253]
[1750379473142,0.79255,2523.1,2523.0,3.2078]
[1750379473448,0.79253,2523.2,2523.0,3.2078]
[1750379473642,0.79253,2523.2,2523.1,0.7925]
[1750379477158,0.79249,2523.4,2523.3,0.79243]
[1750379477450,0.79249,2523.4,2523.3,4.00023]
[1750379478552,0.79249,2523.4,2523.3,5.1816845]
[1750379479848,0.79249,2523.4,2523.3,1.9738845]
[1750379480653,0.79249,2523.4,2523.3,2.04322231]
[1750379481148,0.79249,2523.4,2523.3,4.06956781]
[1750379481349,0.79249,2523.4,2523.3,5.64931992]
[1750379483461,0.79249,2523.4,2523.3,4.06956781]
[1750379484957,0.79249,2523.4,2523.3,3.27713781]
[1750379485161,3.95961066,2523.4,2523.3,3.27713781]
[1750379485460,5.32901066,2523.4,2523.3,4.8579352]
[1750379485956,5.32901066,2523.4,2523.3,1.6501352]
[1750379488159,5.32901066,2523.4,2523.3,1.25584682]
[1750379489362,5.32901066,2523.4,2523.3,0.06933781]
[1750379489863,5.32901066,2523.4,2523.3,1.25618979]
[1750379490464,5.32901066,2523.4,2523.3,0.06933781]
[1750379491077,5.32901066,2523.4,2523.3,1.25620929]
[1750379494666,5.32901066,2523.4,2523.3,0.06933781]
[1750379495062,5.32901066,2523.4,2523.3,1.25628355]
[1750379495263,5.32901066,2523.4,2523.3,0.06933781]
[1750379495668,2.82369,2523.4,2523.3,0.06933781]
[1750379495966,0.79249,2523.4,2523.3,0.06933781]
[1750379496162,2.74049,2523.4,2523.3,0.06933781]
[1750379499072,2.74049,2523.4,2523.3,1.6501352]
[1750379499463,0.79249,2523.4,2523.3,4.8579352]
[1750379499672,6.99849,2523.4,2523.3,4.8579352]
[1750379500383,9.50381066,2523.4,2523.3,1.6501352]
[1750379500582,11.49861066,2523.4,2523.3,1.6501352]
[1750379501482,8.99329,2523.4,2523.3,1.6501352]
[1750379503187,6.99849,2523.4,2523.3,1.6501352]
[1750379503879,0.79249,2523.4,2523.3,1.6501352]
[1750379504185,6.99849,2523.4,2523.3,4.8579352]
[1750379504482,6.99849,2523.4,2523.3,3.27713781]
[1750379505686,6.99849,2523.4,2523.3,4.86024848]
[1750379506286,6.99849,2523.4,2523.3,3.27713781]
[1750379506482,6.99849,2523.4,2523.3,4.8602809]
[1750379506684,6.99849,2523.4,2523.3,3.27713781]
[1750379507886,0.79249,2523.4,2523.3,4.86028965]
[1750379508282,0.79249,2523.4,2523.3,4.86035973]
[1750379508987,0.79249,2523.4,2523.3,4.06959781]
[1750379509191,0.79249,2523.4,2523.3,7.11588752]
[1750379509384,0.79249,2523.4,2523.3,8.40978752]
[1750379509782,0.79249,2523.4,2523.3,6.03719781]
[1750379509988,0.79249,2523.4,2523.3,8.4119938]
[1750379510184,0.79249,2523.4,2523.3,6.03719781]
[1750379510385,0.79249,2523.4,2523.3,3.95083781]
[1750379510985,0.79249,2523.4,2523.3,3.27713781]
[1750379511191,0.79247,2523.3,2523.2,0.6585]
[1750379513792,2.85167,2523.3,2523.2,0.6585]
[1750379513995,2.85167,2523.3,2523.2,3.03372496]
[1750379517195,2.85167,2523.3,2523.2,3.10306277]
[1750379518194,2.85167,2523.3,2523.2,3.03372496]
[1750379519793,2.85167,2523.3,2523.2,2.37522496]
[1750379520593,0.7925,2523.2,2523.1,2.37522496]
[1750379520788,25.5098,2523.2,2523.1,2.37522496]
[1750379521089,29.32462066,2523.2,2523.1,2.37522496]
[1750379521293,29.32462066,2523.2,2523.1,1.58384689]
[1750379521687,29.32462066,2523.2,2523.1,1.18797182]
[1750379524298,29.32462066,2523.2,2523.1,1.25730963]
[1750379528896,0.7925,2523.2,2523.1,1.25730963]
[1750379529193,24.8775,2523.2,2523.1,0.06933781]
[1750379529398,24.8775,2523.2,2523.1,0.71403781]
[1750379529909,24.8775,2523.2,2523.1,1.90051609]
[1750379530897,24.8775,2523.2,2523.1,0.71403781]
[1750379536105,0.7925,2523.2,2523.1,0.71403781]
[1750379536406,0.7925,2523.2,2523.1,2.2978847]
[1750379536604,0.7925,2523.2,2523.1,0.71403781]
[1750379536808,0.7925,2523.2,2523.1,2.01123781]
[1750379537212,0.7925,2523.2,2523.1,3.59311395]
[1750379537609,0.7925,2523.2,2523.1,0.71403781]
[1750379538001,0.7925,2523.2,2523.1,1.50656781]
[1750379538609,0.7925,2523.2,2523.1,5.17899277]
[1750379540914,0.7923,2523.9,2523.8,0.79227]
[1750379541208,0.7923,2523.9,2523.8,4.00007]
[1750379541401,8.85818,2524.2,2523.9,0.79224]
[1750379541402,0.79227,2524.0,2523.9,0.79224]
[1750379541602,0.79227,2524.0,2523.9,2.75274]
[1750379542813,0.79227,2524.0,2523.9,4.33223809]
[1750379543013,0.79227,2524.0,2523.9,3.53999809]
[1750379543515,0.79227,2524.0,2523.9,4.33227809]
[1750379544011,6.98619,2524.2,2524.1,0.79221]
[1750379544319,6.98619,2524.2,2524.1,4.39181662]
[1750379544508,6.98619,2524.2,2524.1,3.2078]
[1750379544922,6.98619,2524.2,2524.1,4.39110615]
[1750379546717,6.98619,2524.2,2524.1,3.2078]
[1750379552917,6.98619,2524.2,2524.1,4.00001]
[1750379553222,6.98619,2524.2,2524.1,3.2078]
[1750379553818,6.98619,2524.2,2524.1,4.00001]
[1750379554923,0.79219,2524.2,2524.1,4.00001]
[1750379555125,0.79218,2524.3,2524.2,0.79213]
[1750379555326,0.79215,2524.4,2524.3,0.79212]
[1750379555822,0.79215,2524.4,2524.3,2.16062]
[1750379557311,0.79211,2524.5,2524.4,0.79209]
[1750379557514,0.79211,2524.5,2524.4,3.99989]
[1750379558325,0.6362,2524.7,2524.4,5.18808]
[1750379558515,1.42827,2524.7,2524.6,0.79206]
[1750379558717,0.79207,2524.7,2524.6,0.79206]
[1750379561422,0.79201,2524.9,2524.8,0.79197]
[1750379561626,0.79201,2524.9,2524.8,3.99977]
[1750379562722,0.79201,2524.9,2524.8,3.2078]
[1750379563119,0.79201,2524.9,2524.8,3.99979]
[1750379564026,0.79201,2524.9,2524.8,0.79199]
[1750379564224,2.62457,2525.0,2524.6,0.6589]
[1750379564423,0.79206,2524.6,2524.5,3.2078]
[1750379564626,0.79206,2524.6,2524.5,3.99989]
[1750379564827,1.47736,2524.6,2524.5,3.99989]
[1750379565337,0.6853,2524.6,2524.5,3.99989]
[1750379565529,0.79205,2524.7,2524.6,0.79206]
[1750379569535,0.79205,2524.7,2524.6,3.99986]
[1750379570035,0.79199,2524.9,2524.8,0.79196]
[1750379570328,1.47725,2525.0,2524.9,0.79196]
[1750379570836,0.79199,2524.9,2524.8,0.79197]
[1750379571832,1.47726,2525.0,2524.9,0.79196]
[1750379572035,1.47726,2525.0,2524.9,1.97431773]
[1750379572837,1.47723,2525.0,2524.9,3.99976]
[1750379574635,1.47723,2525.0,2524.9,0.79196]
[1750379574937,1.47723,2525.0,2524.9,3.99976]
[1750379575744,1.47723,2525.0,2524.9,5.576134]
[1750379575948,0.79193,2525.0,2524.9,5.576134]
[1750379576641,0.7919,2525.2,2525.1,0.79186]
[1750379576838,0.7919,2525.2,2525.1,2.368234]
[1750379577934,0.671,2525.3,2525.1,1.576374]
[1750379578139,1.46286,2525.3,2525.2,5.576044]
[1750379579238,0.79182,2525.4,2525.3,0.79184]
[1750379579443,0.79182,2525.4,2525.3,4.87418769]
[1750379579643,0.79182,2525.4,2525.3,3.29716066]
[1750379579845,0.79179,2525.6,2525.5,0.79175]
[1750379580146,0.79179,2525.6,2525.5,1.97467189]
[1750379580549,0.79179,2525.6,2525.5,0.79175]
[1750379580846,0.79179,2525.6,2525.5,2.36899192]
[1750379581943,0.79179,2525.6,2525.5,4.87431258]
[1750379582151,0.6569,2525.7,2525.6,0.79174]
[1750379582341,0.6569,2525.7,2525.6,2.36898192]
[1750379582545,1.41398,2525.9,2525.8,0.79168]
[1750379582746,1.41398,2525.9,2525.8,1.97342825]
[1750379582948,1.41398,2525.9,2525.8,1.18174825]
[1750379583345,3.91930066,2525.9,2525.8,1.18174825]
[1750379584352,1.41398,2525.9,2525.8,1.18174825]
[1750379584748,0.79168,2525.8,2525.7,1.18174825]
[1750379584946,2.85438,2525.8,2525.7,1.18174825]
[1750379585354,2.85438,2525.8,2525.7,1.97345825]
[1750379585653,2.0627,2525.8,2525.7,1.97345825]
[1750379586252,2.85438,2525.8,2525.7,1.97345825]
[1750379586557,2.85438,2525.8,2525.7,1.18174825]
[1750379587146,0.6223,2525.9,2525.8,0.79168]
[1750379587454,0.6223,2525.9,2525.8,5.17887679]
[1750379587753,0.6223,2525.9,2525.8,3.99948]
[1750379587953,0.79165,2525.9,2525.8,3.99948]
[1750379588157,1.47824,2526.0,2525.9,0.79165]
[1750379588344,1.47824,2526.0,2525.9,1.17915046]
[1750379588545,0.79165,2525.9,2525.8,4.38695046]
[1750379588741,2.15125,2525.9,2525.8,5.17847701]
[1750379588954,0.79165,2525.9,2525.8,3.99948]
[1750379589457,0.79165,2525.9,2525.8,3.2078]
[1750379589752,0.79165,2525.9,2525.8,3.99948]
[1750379590650,0.79165,2525.9,2525.8,5.1780848]
[1750379590853,0.79165,2525.9,2525.8,3.99948]
[1750379591352,0.86098781,2525.9,2525.8,3.99948]
[1750379591549,0.86098781,2525.9,2525.8,3.2078]
[1750379591857,0.86098781,2525.9,2525.8,4.38627129]
[1750379592554,0.86098781,2525.9,2525.8,3.99948]
[1750379592747,0.86098781,2525.9,2525.8,4.38624526]
[1750379592951,2.16628781,2525.9,2525.8,4.38624526]
[1750379594248,2.09695,2525.9,2525.8,5.17792526]
[1750379594563,2.09695,2525.9,2525.8,4.38624526]
[1750379594953,2.09695,2525.9,2525.8,5.17792526]
[1750379595265,2.16628781,2525.9,2525.8,5.17792526]
[1750379596461,2.09695,2525.9,2525.8,5.17792526]
[1750379597361,2.16628781,2525.9,2525.8,5.17792526]
[1750379599063,2.16628781,2525.9,2525.8,4.38624526]
[1750379599258,2.16628781,2525.9,2525.8,5.17792526]
[1750379599663,2.16628781,2525.9,2525.8,5.17843806]
[1750379599973,2.16628781,2525.9,2525.8,3.99948]
[1750379600262,2.16628781,2525.9,2525.8,0.79168]
[1750379601771,2.16628781,2525.9,2525.8,2.36734434]
[1750379602955,2.16628781,2525.9,2525.8,1.57566434]
[1750379603363,2.16628781,2525.9,2525.8,1.17979287]
[1750379603557,0.79168,2525.8,2525.7,1.17979287]
[1750379603762,4.61080066,2525.8,2525.7,1.17979287]
[1750379604065,0.79171,2525.7,2525.6,1.17979287]
[1750379604268,3.43721,2525.7,2525.6,1.17979287]
[1750379605657,0.79174,2525.6,2525.5,2.36743434]
[1750379606161,0.79174,2525.6,2525.5,1.57566434]
[1750379606359,2.07004,2525.6,2525.5,1.57566434]
[1750379606559,4.57536066,2525.6,2525.5,1.57566434]
[1750379606759,0.79177,2525.5,2525.4,5.572361]
[1750379606959,2.07007,2525.5,2525.4,5.572361]
[1750379608369,2.07007,2525.5,2525.4,3.2078]
[1750379610661,2.07007,2525.5,2525.4,4.78499727]
[1750379611469,2.07007,2525.5,2525.4,3.2078]
[1750379612671,2.07007,2525.5,2525.4,4.78477763]
[1750379612871,2.07007,2525.5,2525.4,3.2078]
[1750379613070,2.07007,2525.5,2525.4,4.78470343]
[1750379614164,0.79177,2525.5,2525.4,4.78470343]
[1750379616183,0.79177,2525.5,2525.4,5.57651343]
[1750379616372,0.79177,2525.5,2525.4,3.99961]
[1750379617577,0.79177,2525.5,2525.4,6.364171]
[1750379619376,0.79177,2525.5,2525.4,3.99961]
[1750379619570,0.79177,2525.5,2525.4,4.64271]
[1750379620378,0.79177,2525.5,2525.4,7.007271]
[1750379621581,0.79177,2525.5,2525.4,4.64271]
[1750379622379,0.79177,2525.5,2525.4,6.21521159]
[1750379622578,0.79177,2525.5,2525.4,3.8509]
[1750379622767,0.86110781,2525.5,2525.4,3.2078]
[1750379624880,2.87060781,2525.5,2525.4,4.78439926]
[1750379625980,2.80127,2525.5,2525.4,4.78439926]
[1750379626278,2.80127,2525.5,2525.4,1.57659926]
[1750379626485,2.80127,2525.5,2525.3,2.36431159]
[1750379626486,0.79181,2525.4,2525.3,1.57659926]
[1750379626784,5.27263066,2525.4,2525.3,1.57659926]
[1750379630678,0.79184,2525.3,2525.2,2.36431159]
[1750379632285,0.79184,2525.3,2525.1,1.18411027]
[1750379632286,6.3788,2525.3,2525.1,1.18411027]
[1750379632583,12.68699066,2525.2,2525.1,1.18411027]
[1750379632884,0.7919,2525.1,2525.0,1.18411027]
[1750379633180,5.31832066,2525.1,2525.0,1.18411027]
[1750379637684,0.79193,2525.0,2524.9,1.18411027]
[1750379637885,2.68083,2525.0,2524.9,1.18411027]
[1750379643688,0.79196,2524.9,2524.8,3.2078]
[1750379646196,2.13346,2524.9,2524.8,3.2078]
[1750379648189,0.79206,2524.6,2524.5,5.71312066]
[1750379648385,0.79206,2524.6,2524.5,7.17291066]
[1750379649089,0.79206,2524.6,2524.5,6.38082066]
[1750379649288,0.79206,2524.6,2524.5,7.17291066]
[1750379649894,0.79206,2524.6,2524.5,6.38082066]
[1750379651095,0.79206,2524.6,2524.5,7.17291066]
[1750379651391,0.79206,2524.6,2524.5,6.38082066]
[1750379651595,0.79206,2524.6,2524.5,7.17291066]
[1750379651794,0.79206,2524.6,2524.5,6.38082066]
[1750379652393,0.79206,2524.6,2524.5,7.17291066]
[1750379652594,0.79206,2524.6,2524.5,6.38082066]
[1750379652895,0.79206,2524.6,2524.5,7.17291066]
[1750379653899,0.79206,2524.6,2524.5,8.49751066]
[1750379654093,0.79206,2524.7,2524.6,0.79202]
[1750379654294,0.79206,2524.7,2524.6,4.62194066]
[1750379657900,0.79206,2524.7,2524.6,7.77435612]
[1750379658198,0.79206,2524.7,2524.6,4.62194066]
[1750379658599,0.79206,2524.7,2524.6,7.77435612]
[1750379658898,0.79206,2524.6,2524.5,7.02791546]
[1750379661600,0.79206,2524.6,2524.5,3.8755]
[1750379665203,0.79206,2524.6,2524.5,7.03861972]
[1750379665696,0.79206,2524.6,2524.5,7.83070972]
[1750379668809,0.79206,2524.7,2524.6,0.79203]
[1750379669000,0.79202,2524.8,2524.7,0.79197]
[1750379670703,0.7919,2525.2,2525.1,0.79187]
[1750379671014,0.79182,2525.4,2525.3,0.79179]
[1750379671309,0.79182,2525.4,2525.3,3.29711066]
[1750379672106,0.7918,2525.5,2525.4,0.79176]
[1750379672404,0.7918,2525.5,2525.4,6.50488066]
[1750379672705,0.7918,2525.5,2525.4,8.87068997]
[1750379672901,0.7918,2525.5,2525.4,5.57360931]
[1750379673110,0.7918,2525.5,2525.4,3.2078]
[1750379673309,3.29712066,2525.5,2525.4,4.78528767]
[1750379675517,0.7918,2525.5,2525.4,4.78528767]
[1750379676614,0.7918,2525.5,2525.4,3.2078]
[1750379679715,0.7918,2525.5,2525.4,4.38894667]
[1750379680019,1.4379,2525.5,2525.4,4.38894667]
[1750379681221,2.6838,2525.5,2525.4,4.38894667]
[1750379682418,2.6838,2525.5,2525.4,3.2078]
[1750379682621,2.6838,2525.5,2525.4,4.38879267]
[1750379683820,2.6838,2525.5,2525.4,3.2078]
[1750379684513,2.6838,2525.5,2525.4,4.38890149]
[1750379685728,2.6838,2525.5,2525.4,3.2078]
[1750379688627,1.4379,2525.5,2525.4,3.2078]
[1750379690331,1.4379,2525.5,2525.4,4.38895781]
[1750379691330,1.4379,2525.5,2525.4,3.2078]
[1750379691529,0.7918,2525.5,2525.4,3.2078]
[1750379700239,0.7918,2525.5,2525.4,5.57011562]
[1750379700440,0.7918,2525.5,2525.4,3.2078]
[1750379700632,2.064,2525.5,2525.4,5.57011562]
[1750379701034,7.06397,2525.5,2525.4,1.58033051]
[1750379701740,7.06397,2525.5,2525.2,2.36231562]
[1750379701741,0.79184,2525.3,2525.2,2.36231562]
[1750379701943,24.83784,2525.3,2525.2,2.36231562]
[1750379702441,26.11004,2525.3,2525.2,2.36231562]
[1750379702941,0.79184,2525.3,2525.2,2.36231562]
[1750379703245,0.79187,2525.2,2525.1,0.79188]
[1750379703435,0.79187,2525.2,2525.1,2.04268]
[1750379705241,0.79187,2525.2,2525.1,1.2508]
[1750379705445,0.7919,2525.1,2525.0,6.35755416]
[1750379705741,0.7919,2525.1,2525.0,3.2078]
[1750379707445,8.68032066,2525.2,2524.6,3.93719271]
[1750379707446,0.79193,2525.0,2524.9,2.36956637]
[1750379707645,0.79196,2524.9,2524.8,2.36956637]
[1750379707846,2.71936,2524.9,2524.8,2.36956637]
[1750379708645,0.79199,2524.8,2524.7,2.36956637]
[1750379708847,0.79203,2524.7,2524.6,3.8735]
[1750379712947,0.79203,2524.7,2524.6,7.15195802]
[1750379713142,0.79203,2524.7,2524.6,4.78552942]
[1750379713642,0.79206,2524.6,2524.5,1.57772942]
[1750379714044,0.79205,2524.7,2524.5,2.50532066]
[1750379714248,6.176,2524.8,2524.7,0.79203]
[1750379714249,0.79202,2524.8,2524.7,0.79203]
[1750379714552,0.79202,2524.8,2524.7,4.87424392]
[1750379714847,0.79202,2524.8,2524.7,4.08221392]
[1750379715150,0.79202,2524.8,2524.7,4.87424392]
[1750379721452,1.9798,2525.1,2524.8,0.79195]
[1750379721654,0.79193,2525.0,2524.9,5.18209126]
[1750379721954,0.79193,2525.1,2525.0,0.7919]
[1750379722154,0.79193,2525.1,2525.0,1.97424126]
[1750379722357,0.79193,2525.1,2525.0,0.7919]
[1750379723355,0.79193,2525.1,2525.0,2.36879326]
[1750379723951,0.79189,2525.2,2525.1,0.79187]
[1750379724151,0.79189,2525.2,2525.1,4.87334886]
[1750379724357,0.79189,2525.2,2525.1,5.66361926]
[1750379730255,0.79189,2525.2,2525.1,3.1582986]
[1750379730560,0.79189,2525.2,2525.1,2.3664286]
[1750379730860,1.44069,2525.2,2525.1,3.1583286]
[1750379732964,1.44069,2525.2,2525.1,0.7919]
[1750379733461,0.79189,2525.2,2525.1,0.7919]
[1750379735366,0.79189,2525.2,2525.1,3.29722066]
[1750379736270,2.09096,2525.4,2525.3,0.79184]
[1750379736464,1.45576,2525.4,2525.3,5.57569679]
[1750379736967,0.79186,2525.4,2525.3,3.99964]
[1750379737161,0.79176,2525.6,2525.5,0.79174]
[1750379737365,0.79176,2525.6,2525.5,2.367474]
[1750379739468,0.79173,2525.7,2525.6,0.79174]
[1750379739668,0.79173,2525.7,2525.6,8.07961684]
[1750379739865,0.79173,2525.7,2525.6,5.57429618]
[1750379740470,0.06933781,2525.7,2525.6,5.57429618]
[1750379740667,6.171,2526.4,2526.0,0.79161]
[1750379740875,0.79155,2526.2,2526.1,7.68503868]
[1750379741076,0.79155,2526.2,2526.1,6.50469066]
[1750379741268,0.79155,2526.2,2526.1,5.71312066]
[1750379741470,0.79155,2526.2,2526.1,7.68434847]
[1750379741664,0.79155,2526.2,2526.1,4.38743781]
[1750379742170,0.79155,2526.2,2526.1,5.17902781]
[1750379742762,0.79155,2526.3,2526.2,0.79152]
[1750379743166,8.7871,2526.4,2526.1,4.38743781]
[1750379743167,0.79155,2526.2,2526.1,4.38743781]
[1750379743571,0.79155,2526.2,2526.1,5.17902781]
[1750379744071,1.3192,2526.3,2526.1,5.17902781]
[1750379744072,1.3192,2526.3,2526.2,0.79155]
[1750379745269,0.79154,2526.3,2526.2,0.79155]
[1750379746270,0.79154,2526.3,2526.2,1.97118781]
[1750379749078,0.79154,2526.3,2526.2,1.96952823]
[1750379749581,0.86087781,2526.3,2526.2,1.96952823]
[1750379749880,0.86087781,2526.3,2526.2,1.17797823]
[1750379750482,2.18907781,2526.3,2526.2,1.17797823]
[1750379750881,2.18907781,2526.3,2526.2,1.96953823]
[1750379755677,0.86087781,2526.3,2526.2,1.96953823]
[1750379755886,0.7915,2526.5,2526.4,0.79146]
[1750379756074,0.7915,2526.5,2526.4,6.50458066]
[1750379756273,0.7915,2526.5,2526.4,7.16958066]
[1750379756981,1.41466,2526.6,2526.5,0.79146]
[1750379757182,0.79146,2526.6,2526.5,0.79146]
[1750379758688,2.61577,2526.8,2526.4,4.38559416]
[1750379758689,0.79146,2526.5,2526.4,4.38559416]
[1750379758986,2.83266,2526.5,2526.4,4.38559416]
[1750379759884,2.83266,2526.5,2526.4,5.17708416]
[1750379760280,2.83266,2526.5,2526.4,7.68240482]
[1750379760588,1.46766,2526.5,2526.4,6.50461066]
[1750379761186,0.79145,2526.6,2526.5,0.79146]
[1750379761384,0.79145,2526.6,2526.5,1.96946496]
[1750379761985,1.41872,2526.7,2526.6,0.79143]
[1750379762284,1.41872,2526.7,2526.6,4.47475562]
[1750379762489,1.41872,2526.7,2526.6,5.13275562]
[1750379762791,0.6273,2526.7,2526.6,5.13275562]
[1750379763215,1.4187,2526.7,2526.6,5.13275562]
[1750379763489,1.4187,2526.7,2526.6,4.34132562]
[1750379763679,1.4187,2526.7,2526.6,5.13275562]
[1750379764190,1.4187,2526.7,2526.6,3.95475066]
[1750379764393,0.6273,2526.7,2526.6,5.13311706]
[1750379765277,1.4187,2526.7,2526.6,3.95475066]
[1750379765487,0.6273,2526.7,2526.6,3.95475066]
[1750379765677,1.4187,2526.7,2526.6,5.52854803]
[1750379766391,1.42868,2526.8,2526.7,0.7914]
[1750379766592,1.42868,2526.8,2526.7,3.9992]
[1750379767288,1.42867,2526.8,2526.7,5.57299737]
[1750379767491,1.42867,2526.8,2526.7,3.9992]
[1750379768186,1.42867,2526.8,2526.7,4.78159737]
[1750379768391,2.71187,2526.8,2526.7,5.57299737]
[1750379768790,2.71187,2526.8,2526.7,4.78159737]
[1750379769294,2.71187,2526.8,2526.7,5.57299737]
[1750379770186,0.6276,2526.9,2526.8,0.79137]
[1750379770386,0.6276,2526.9,2526.8,4.87083486]
[1750379770591,0.79134,2527.0,2526.9,0.79128]
[1750379770792,0.79134,2527.0,2526.9,2.9869242]
[1750379772583,0.6607,2527.2,2527.0,0.79131]
[1750379772785,0.79127,2527.2,2527.1,3.15193605]
[1750379773086,0.79127,2527.2,2527.1,0.79124]
[1750379773288,0.7912,2527.5,2527.4,0.79115]
[1750379773495,0.7912,2527.5,2527.4,6.50427066]
[1750379774090,0.79114,2527.6,2527.5,0.79112]
[1750379774293,0.79114,2527.6,2527.5,2.36243776]
[1750379774494,0.79115,2527.5,2527.4,8.07559842]
[1750379776996,0.79115,2527.5,2527.4,4.77911776]
[1750379777196,0.79115,2527.5,2527.4,5.57029776]
[1750379777396,0.79115,2527.5,2527.4,3.99898]
[1750379777600,0.79115,2527.5,2527.4,3.2078]
[1750379778005,1.43655,2527.5,2527.4,3.2078]
[1750379779203,1.43655,2527.5,2527.4,4.77911776]
[1750379779405,1.43655,2527.5,2527.4,3.99898]
[1750379779903,1.50588781,2527.5,2527.4,3.2078]
[1750379780306,1.50588781,2527.5,2527.4,3.99898]
[1750379780604,1.50588781,2527.5,2527.4,3.2078]
[1750379781903,1.50588781,2527.5,2527.4,4.38353905]
[1750379782200,1.50588781,2527.5,2527.4,3.2078]
[1750379782402,1.50588781,2527.5,2527.4,4.38349828]
[1750379782602,1.50588781,2527.5,2527.4,3.2078]
[1750379783004,1.50588781,2527.5,2527.4,4.38352634]
[1750379783507,1.50588781,2527.5,2527.4,5.17470634]
[1750379784509,1.50588781,2527.5,2527.4,4.38352634]
[1750379785793,1.50588781,2527.5,2527.4,5.17470634]
[1750379786200,1.50588781,2527.5,2527.4,3.99898]
[1750379787308,1.50588781,2527.5,2527.4,5.57029776]
[1750379787605,1.50588781,2527.5,2527.4,3.99898]
[1750379788208,1.50588781,2527.5,2527.4,5.57029776]
[1750379789009,0.06933781,2527.5,2527.4,8.07561842]
[1750379789212,0.86048781,2527.5,2527.4,8.07561842]
[1750379789405,0.86048781,2527.5,2527.4,7.17340066]
[1750379791910,0.86048781,2527.5,2527.4,4.66808]
[1750379794519,0.86048781,2527.5,2527.4,7.02516781]
[1750379796224,0.06933781,2527.5,2527.4,7.02516781]